Cogmind - Beta 10.2 @@@ ROGUE MODE // 2021.03.12 @ 17:12:20 Player: ChromeKnight Result: Self-destructed Performance ------------- Evolutions (3) 1500 Regions Visited (8) 1600 Robots Destroyed (59) 295 Value Destroyed (2268) 2268 Prototype IDs (24) 480 Alien Tech Used (0) 0 Bonus (1231) 1231 TOTAL SCORE: 7374 Bonus ------- High Alert Combat Kills 126 Follower Combat Kills 105 Entered Garrisons 200 Used RIF Installer 500 Aligned with FarCom 300 Cogmind --------- Core Integrity 436/700 Matter 300/300 Energy 480/480 System Corruption 5% Temperature Cool (0) Movement Rolling (100) Ox1 Location -7/Factory Parts ------- > --- POWER (2) -------- Improved Deuterium Engine Improved Deuterium Engine > --- PROPULSION (3) --- Wheel Armored Huge Wheel > --- UTILITY (6) ------ Medium Storage Unit Advanced Visual Processing Unit Transmission Jammer Improved Light Armor Plating Improved Medium Armor Plating > --- WEAPON (2) ------- (None) > --- INVENTORY (8) ---- Medium Storage Unit Relay Coupler [NC] (29) Relay Coupler [ARC] (11) Relay Coupler [Brawler] (26) Relay Coupler [Sentry] (23) Relay Coupler [Specialist] (27) Relay Coupler [Hunter] (17) Peak State ------------ > --- POWER ------------ Improved Deuterium Engine Improved Deuterium Engine > --- PROPULSION ------- Medium Treads Armored Huge Wheel > --- UTILITY ---------- Medium Storage Unit Advanced Visual Processing Unit Transmission Jammer Improved Light Armor Plating Improved Medium Armor Plating Hacking Suite > --- WEAPON ----------- Advanced Assault Cannon > --- INVENTORY -------- Medium Storage Unit Relay Coupler [NC] Relay Coupler [ARC] Relay Coupler [Brawler] Relay Coupler [Sentry] Relay Coupler [Specialist] Relay Coupler [Hunter] [Rating: 43] Favorites ----------- Power Light Nuclear Core Engine Ion Engine Power Core Light Nuclear Core Propulsion Aluminum Leg Treads Medium Treads Leg Aluminum Leg Wheel Armored Huge Wheel Flight Unit VTOL Module Utility Small Storage Unit Device Cooling System Storage Small Storage Unit Processor Targeting Computer Hackware Hacking Suite Protection Hardened Medium Armor Plating Weapon Lightning Gun Energy Gun Lightning Gun Energy Cannon Guided Plasma Cannon Ballistic Gun Flak Gun Ballistic Cannon Advanced Assault Cannon Build | -11 -10 -10 -10 -9 -8 -7 -7 -7 ------- Run | Scr Mat Min Exi Min Mat Fac Gar Fac Slots Evolved 6 | . . . . . 4 2 . . Power 1 | . . . . . 1 . . . Propulsion 1 | . . . . . 1 . . . Utility 4 | . . . . . 2 2 . . Weapon . | . . . . . . . . . Parts Attached 99 | 6 1 15 2 1 9 14 30 21 Power 19 | 1 . 3 . . 1 2 6 6 Engine 9 | 1 . 3 . . 1 2 . 2 Core 10 | . . . . . . . 6 4 Reactor . | . . . . . . . . . Propulsion 25 | 2 1 4 . . 1 1 12 4 Treads 1 | . . . . . . . . 1 Leg 21 | 2 1 4 . . 1 1 11 1 Wheel 2 | . . . . . . . . 2 Hover . | . . . . . . . . . Flight 1 | . . . . . . . 1 . Utility 31 | 1 . 4 . . 5 9 5 7 Device 19 | . . 4 . . 4 6 2 3 Storage 4 | 1 . . . . . 1 . 2 Processor 3 | . . . . . 1 2 . . Hackware 2 | . . . . . . . 2 . Protection 3 | . . . . . . . 1 2 Artifact . | . . . . . . . . . Weapon 24 | 2 . 4 2 1 2 2 7 4 Energy Gun 8 | . . 2 1 1 . 2 2 . Energy Cannon 4 | . . . 1 . 2 . 1 . Ballistic Gun 11 | 2 . 2 . . . . 4 3 Ballistic Cannon 1 | . . . . . . . . 1 Launcher . | . . . . . . . . . Special Weapon . | . . . . . . . . . Impact Weapon . | . . . . . . . . . Slashing Weapon . | . . . . . . . . . Piercing Weapon . | . . . . . . . . . Special Melee Weapon . | . . . . . . . . . Unidentified Prototypes 1 | . . . . . . 1 . . Parts Lost 26 | . . 6 . . . . 9 11 Power 4 | . . . . . . . 1 3 Propulsion 6 | . . 2 . . . . 1 3 Utility 9 | . . 1 . . . . 5 3 Weapon 7 | . . 3 . . . . 2 2 Highest Loss Streak 6 | . . 4 . . . . 6 5 Average Slot Usage (%) 91 | . 85 92 100 100 91 98 96 80 Engine 9 | . 14 14 14 14 10 15 9 3 Core 3 | . . . . . . . 5 7 Leg 20 | . 28 27 28 28 27 23 22 10 Device 13 | . . 13 14 14 18 14 12 14 Storage 9 | . 14 14 14 14 9 9 7 7 Processor 10 | . . . . . 9 19 16 7 Hackware 3 | . . . . . . . 2 8 Protection 2 | . . . . . . . 2 4 Energy Gun 6 | . . 10 14 14 1 9 10 . Energy Cannon 2 | . . . 7 14 16 5 . . Ballistic Gun 5 | . 28 12 7 . . . 3 8 Naked Turns . | . . . . . . . . . Heaviest Build 46 | 12 12 15 22 23 32 40 41 46 Greatest Support 38 | 20 20 25 25 25 35 35 33 38 Greatest Overweight (x) 11 | 3 . 1 . . . 1 1 11 Average Overweight (x) . | . . . . . . . . 1 Largest Inventory Capacity 12 | 6 6 6 6 6 6 6 6 12 Average Capacity 6 | 5 6 6 6 6 6 6 6 7 Most Carried 8 | 1 5 6 6 6 6 6 6 8 Average Carried 5 | . 2 5 6 6 5 5 5 6 Final Capacity 8 | 6 6 6 6 6 6 6 6 8 Final Carried 7 | 1 5 6 6 6 6 4 6 7 Class Distribution -------------------- 67% | Mutant 32% | Scavenger-Mutant Dominant Class ---------------- Mutant | -10/Materials Mutant | -10/Mines Mutant | -10/Exiles Mutant | -9/Mines Mutant | -8/Materials Mutant | -7/Factory Mutant | -7/Garrison Scavenger-Mutant | -7/Factory Resources | -11 -10 -10 -10 -9 -8 -7 -7 -7 ----------- Run | Scr Mat Min Exi Min Mat Fac Gar Fac Matter Collected 1713 | 211 45 201 . 50 100 140 428 538 Remotely . | . . . . . . . . . Salvage Created 2351 | . 45 350 . . 131 218 665 942 Parts 104 | . 2 27 . . 8 5 33 29 Haulers Intercepted 1 | . . . . . . . . 1 Recyclers Shooed 1 | . . . . . . . . 1 Parts Field Recycled . | . . . . . . . . . Retrieved Matter . | . . . . . . . . . Parts Self-Destructed . | . . . . . . . . . Prevented . | . . . . . . . . . Kills | -11 -10 -10 -10 -9 -8 -7 -7 -7 ------- Run | Scr Mat Min Exi Min Mat Fac Gar Fac Combat Hostiles Destroyed 47 | . 1 12 . . 5 3 15 11 Guns 34 | . 1 12 . . 1 3 11 6 Cannons 11 | . . . . . 4 . 3 4 AOE 1 | . . . . . . . . 1 Classes Destroyed 11 | . 1 2 . . . 3 . 5 Worker 2 | . . . . . . . . 2 Builder 1 | . . . . . . . . 1 Hauler 1 | . . . . . . . . 1 Recycler 6 | . . . . . . . . 6 Operator 1 | . . . . . . 1 . . Watcher 1 | . . . . . . 1 . . Swarmer 16 | . . 6 . . 4 . 6 . Grunt 21 | . 1 4 . . . 2 8 6 Duelist 1 | . . . . . . . . 1 Sentry 6 | . . 2 . . 1 . 1 2 Programmer 3 | . . . . . . 1 . 2 Best Kill Streak 5 | . 1 3 . . 4 2 5 5 Combat Bots Only 5 | . 1 3 . . 4 2 5 3 Max Kills in Single Turn 3 | . 1 1 . . 1 1 2 3 Gunslinging 1 | . . . . . . . 1 . Exploded 1 | . . . . . . . . 1 Melee . | . . . . . . . . . Uniques/NPCs Destroyed . | . . . . . . . . . Combat | -11 -10 -10 -10 -9 -8 -7 -7 -7 -------- Run | Scr Mat Min Exi Min Mat Fac Gar Fac Damage Taken 3866 | . 121 774 . . 172 147 1153 1499 Core 414 | . 22 109 . . 19 14 111 139 Absorbed by Shields . | . . . . . . . . . Core Remaining (%) 81 | 100 . . . 47 96 . . . Volleys Fired 187 | . 6 42 . 1 16 35 47 40 Largest 2 | . 2 2 . 1 2 2 2 2 Hottest 130 | . 40 75 . 120 120 124 130 76 Shots Fired 299 | . 12 64 . 1 20 50 85 67 Gun 227 | . 12 64 . . 4 30 78 39 Cannon 72 | . . . . 1 16 20 7 28 Launcher . | . . . . . . . . . Special . | . . . . . . . . . Kinetic 159 | . 12 48 . . . . 32 67 Thermal 98 | . . 16 . 1 16 35 30 . Explosive . | . . . . . . . . . Electromagnetic 42 | . . . . . 4 15 23 . Robot Hit Streak 34 | . 2 8 . . 19 34 16 10 Robot Miss Streak 8 | . 2 3 . . . 2 2 8 Penetration Max . | . . . . . . . . . Secondary Targets 3 | . . 1 . . . . 2 . Max Gunslinging Chain 1 | . . 1 . . . . 1 . Shots Hit Robots 191 | . 6 43 . . 13 24 61 44 Core Hits 124 | . 2 21 . . 7 12 29 53 Critical Hits . | . . . . . . . . . Critical Kills . | . . . . . . . . . Critical Parts Destroyed . | . . . . . . . . . Melee Attacks . | . . . . . . . . . Impact . | . . . . . . . . . Slashing . | . . . . . . . . . Piercing . | . . . . . . . . . Sneak Attacks . | . . . . . . . . . Combat Hostiles . | . . . . . . . . . Follow-up Attacks . | . . . . . . . . . Damage Inflicted 4891 | . 62 592 . . 356 576 1089 2216 Guns 2890 | . 61 592 . . 67 429 965 776 Cannons 996 | . . . . . 289 147 124 436 Explosions 1001 | . . . . . . . . 1001 Melee . | . . . . . . . . . Ramming 4 | . 1 . . . . . . 3 Kinetic 1964 | . 61 359 . . . . 332 1212 Thermal 1236 | . . 233 . . 289 346 368 . Explosive 1001 | . . . . . . . . 1001 Electromagnetic 686 | . . . . . 67 230 389 . Impact . | . . . . . . . . . Slashing . | . . . . . . . . . Piercing . | . . . . . . . . . Highest Corruption 5 | . . . . . . . . 5 Average Corruption 4 | . . . . . . . . 4 Corruption Purged . | . . . . . . . . . Effects 23 | . . . . . . . . 23 Message Errors 10 | . . . . . . . . 10 Matter Fused 3 | . . . . . . . . 3 Heat Flow Errors 1 | . . . . . . . . 1 Energy Discharges 1 | . . . . . . . . 1 Data Loss (minor) 4 | . . . . . . . . 4 Targeting Errors 4 | . . . . . . . . 4 Overload Shots . | . . . . . . . . . Overflow Damage 208 | . . . . . 16 28 17 147 Projectiles 80 | . . . . . 16 28 17 19 Explosions 128 | . . . . . . . . 128 Melee . | . . . . . . . . . Knockbacks 3 | . . . . . . . . 3 Impact . | . . . . . . . . . Kinetic 3 | . . . . . . . . 3 Secondary . | . . . . . . . . . Self-Inflicted Damage 288 | . . . . . . . . 288 Shots 4 | . . . . . . . . 4 Rammed 1 | . . . . . . . . 1 Targets Rammed 2 | . 1 . . . . . . 1 Kicked 1 | . 1 . . . . . . . Crushed . | . . . . . . . . . Highest Temperature 184 | . 6 150 . 52 12 . 184 184 Average Temperature 40 | . 6 28 . 32 9 . 62 50 Received Heat Transfer 1005 | . 66 303 . . 27 36 279 294 Siege Activations . | . . . . . . . . . Robots Corrupted . | . . . . . . . . . Combat Hostiles . | . . . . . . . . . Parts Fried 5 | . . . . . 1 3 1 . Impact Corruptions . | . . . . . . . . . Robots Melted 1 | . . . . . . . 1 . Combat Hostiles 1 | . . . . . . . 1 . Parts Melted 6 | . . . . . 2 . 4 . Heat Transferred 2502 | . . 407 . . 591 690 814 . Parts Sabotaged . | . . . . . . . . . Parts Stolen . | . . . . . . . . . Parts Stripped . | . . . . . . . . . Power Chain Reactions . | . . . . . . . . . Missiles Intercepted . | . . . . . . . . . Alert | -11 -10 -10 -10 -9 -8 -7 -7 -7 ------- Run | Scr Mat Min Exi Min Mat Fac Gar Fac Peak Influence 616 | . 26 249 . . 140 570 616 382 Initial 317 | . . 9 . . . 63 256 317 Average 266 | . 8 106 . . 57 282 402 263 Maximum Alert Level 2 | . . 1 . . . 2 2 1 Low Security (%) 30 | 100 100 74 . 100 100 38 . 15 Level 1 50 | . . 25 . . . 36 50 84 Level 2 19 | . . . . . . 25 49 . Level 3 . | . . . . . . . . . Level 4 . | . . . . . . . . . Level 5 . | . . . . . . . . . High Security . | . . . . . . . . . Max Security . | . . . . . . . . . Squads Dispatched 12 | . 1 . . . . 4 . 7 Investigation 5 | . . . . . . 2 . 3 Extermination 3 | . . . . . . 1 . 2 Reinforcement 4 | . 1 . . . . 1 . 2 Assault . | . . . . . . . . . Garrison . | . . . . . . . . . Intercept . | . . . . . . . . . Construction Impeded 1 | . . . . . . . . 1 Haulers Reinforced . | . . . . . . . . . Stealth | -11 -10 -10 -10 -9 -8 -7 -7 -7 --------- Run | Scr Mat Min Exi Min Mat Fac Gar Fac Distress Signals 3 | . 1 . . . . 1 . 1 Communications Jammed 5 | . . . . . . . . 5 Distress Signals . | . . . . . . . . . Times Spotted 74 | . 4 14 . . 9 13 15 19 Peak Tracking Total 10 | . 3 5 . . 4 3 5 10 Tactical Retreats 5 | . . 2 . . . 1 1 1 Traps | -11 -10 -10 -10 -9 -8 -7 -7 -7 ------- Run | Scr Mat Min Exi Min Mat Fac Gar Fac Traps Triggered 7 | . . . . . . . 3 4 Indirectly . | . . . . . . . . . Trap Hack Attempts . | . . . . . . . . . Triggered . | . . . . . . . . . Disarmed . | . . . . . . . . . Reprogrammed . | . . . . . . . . . Reused . | . . . . . . . . . Traps Extracted . | . . . . . . . . . Installed . | . . . . . . . . . Triggered 1 | . . . . . . 1 . . Machines | -11 -10 -10 -10 -9 -8 -7 -7 -7 ---------- Run | Scr Mat Min Exi Min Mat Fac Gar Fac Machines Disabled 7 | . . . . . . . 2 5 Max in Single Turn 2 | . . . . . . . 1 2 Garrison Relay 2 | . . . . . . . 2 . Machines Sabotaged . | . . . . . . . . . Garrisons Compromised . | . . . . . . . . . Overloaded Fab Kills . | . . . . . . . . . Fab Network Shutdowns 1 | . . . . . . 1 . . Hacking | -11 -10 -10 -10 -9 -8 -7 -7 -7 --------- Run | Scr Mat Min Exi Min Mat Fac Gar Fac Machines Accessed 12 | . 1 1 1 . 1 2 . 6 Terminals 5 | . 1 . . . 1 . . 3 Fabricators 3 | . . . . . . 1 . 2 Repair Stations . | . . . . . . . . . Recycling Units . | . . . . . . . . . Scanalyzers . | . . . . . . . . . Garrison Access 2 | . . . . . . 1 . 1 Total Hacks 26 | . 1 1 1 . 3 4 . 16 Successful 14 | . 1 1 1 . . 2 . 9 Failed 12 | . . . . . 3 2 . 7 Catastrophic . | . . . . . . . . . Database Lockouts . | . . . . . . . . . Manual 4 | . 1 . 1 . 2 . . . Terminals 13 | . 1 . . . 3 . . 9 Fabricators 9 | . . . . . . 3 . 6 Repair Stations . | . . . . . . . . . Recycling Units . | . . . . . . . . . Scanalyzers . | . . . . . . . . . Garrison Access 2 | . . . . . . 1 . 1 Terminal Hacks 6 | . . 1 1 . . . . 4 Part Schematic 2 | . . . . . . . . 2 Robot Schematic 1 | . . . . . . . . 1 Open Door 1 | . . 1 . . . . . . Zone Layout 1 | . . . . . . . . 1 EX-Prototype ID Bank 1 | . . . 1 . . . . . Fabricator Hacks 5 | . . . . . . 1 . 4 Load Schematic 2 | . . . . . . . . 2 Build 3 | . . . . . . 1 . 2 Repair Station Hacks . | . . . . . . . . . Recycling Unit Hacks . | . . . . . . . . . Scanalyzer . | . . . . . . . . . Garrison Access Hacks 2 | . . . . . . 1 . 1 Unlock Access 2 | . . . . . . 1 . 1 Unauthorized Hacks 1 | . 1 . . . . . . . Terminals 1 | . 1 . . . . . . . Assimilate 1 | . 1 . . . . . . . Fabricators . | . . . . . . . . . Repair Stations . | . . . . . . . . . Recycling Units . | . . . . . . . . . Scanalyzers . | . . . . . . . . . Garrison Access . | . . . . . . . . . Data Cores Recovered . | . . . . . . . . . Used . | . . . . . . . . . Hacking Detections 8 | . . . . . 1 1 . 6 Full Trace Events 5 | . . . . . 1 1 . 3 Feedback Events . | . . . . . . . . . Feedback Blocked . | . . . . . . . . . Robot Schematics Acquired 1 | . . . . . . . . 1 Robots Built 4 | . . . . . . 3 . 1 Matter 405 | . . . . . . 252 . 153 Time 107 | . . . . . . 67 . 40 Total Robot Build Rating 13 | . . . . . . 12 . 1 Part Schematics Acquired 2 | . . . . . . . . 2 Parts Built . | . . . . . . . . . Matter . | . . . . . . . . . Time . | . . . . . . . . . Total Part Build Rating . | . . . . . . . . . Parts Repaired . | . . . . . . . . . Time . | . . . . . . . . . Parts Recycled . | . . . . . . . . . Recycled Matter . | . . . . . . . . . Retrieved Matter . | . . . . . . . . . Retrieved Components . | . . . . . . . . . Parts Scanalyzed . | . . . . . . . . . Part Schematics Acquired . | . . . . . . . . . Parts Damaged . | . . . . . . . . . Bothacking | -11 -10 -10 -10 -9 -8 -7 -7 -7 ------------ Run | Scr Mat Min Exi Min Mat Fac Gar Fac Used RIF Installer 1 | . . . . . . . 1 . Robots Hacked . | . . . . . . . . . Non-combat . | . . . . . . . . . Combat . | . . . . . . . . . Robot Hacks Applied . | . . . . . . . . . Relay Couplers Released 8 | . . . . . . . 8 . Machine Destruction 8 | . . . . . . . 8 . Attached 1 | . . . . . . . 1 . Robots Rewired . | . . . . . . . . . Allies Hacked . | . . . . . . . . . Hacks Repelled . | . . . . . . . . . Allies | -11 -10 -10 -10 -9 -8 -7 -7 -7 -------- Run | Scr Mat Min Exi Min Mat Fac Gar Fac Total Allies 4 | . . . . . . 3 . 1 Largest Group 3 | . . . . . . 3 . 1 Highest-Rated Group 90 | . . . . . . 90 . 8 Highest-Rated Ally 30 | . . . . . . 30 . 8 Total Orders 7 | . . . . . . 3 . 4 STAY 1 | . . . . . . . . 1 FOLLOW 1 | . . . . . . . . 1 AID 1 | . . . . . . 1 . . DROP 1 | . . . . . . . . 1 COLLECT 1 | . . . . . . . . 1 EXPLORE 2 | . . . . . . 2 . . Ally Attacks 34 | . . . . . . 34 . . Total Damage 614 | . . . . . . 614 . . Kills 3 | . . . . . . 3 . . Allies Corrupted . | . . . . . . . . . Allies Melted . | . . . . . . . . . Intel | -11 -10 -10 -10 -9 -8 -7 -7 -7 ------- Run | Scr Mat Min Exi Min Mat Fac Gar Fac Robot Analysis Total . | . . . . . . . . . Derelict Logs Recovered . | . . . . . . . . . Drone Launches 17 | . . . . . . 17 . . Drone Recoveries 1 | . . . . . . 1 . . Exploration | -11 -10 -10 -10 -9 -8 -7 -7 -7 ------------- Run | Scr Mat Min Exi Min Mat Fac Gar Fac Turns Passed 5310 | 54 75 593 279 52 370 788 1544 1555 Spaces Moved 2361 | 33 44 353 230 41 143 328 570 619 Core 71 | 12 . . . . . . . 59 Treads 91 | . . . . . . . . 91 Legs 2135 | 21 44 353 230 41 143 328 570 405 Wheels 64 | . . . . . . . . 64 Hover . | . . . . . . . . . Flight . | . . . . . . . . . Fastest Speed 50 | 50 120 120 120 120 120 120 120 100 Average Speed 137 | 136 120 120 120 120 120 125 137 166 Slowest Speed 600 | 200 120 150 120 120 120 150 150 600 Overloaded Moves . | . . . . . . . . . Propulsion Burnouts . | . . . . . . . . . Robots Hopped 2 | . . . . . . 2 . . Cave-ins Triggered . | . . . . . . . . . Exploration Rate (%) 25 | 4 13 66 61 6 14 17 37 15 Regions Visited 8 Branch Regions 3 Pre-discovered Areas . | . . . . . . . . . Known Exits Taken 1 | . . . . . . 1 . . Unknown Exits Taken 6 | 1 1 1 1 1 1 . . . Scrap Searched 3 | . . 1 . 2 . . . . Spaces Dug 21 | . . . . . 5 16 . . Terrain Destroyed 99 | . . . . 1 5 16 . 77 Melee . | . . . . . . . . . Projectile 26 | . . . . 1 5 16 . 4 AOE 73 | . . . . . . . . 73 Terrain Rammed . | . . . . . . . . . Walls Destroyed . | . . . . . . . . . Machines Disabled . | . . . . . . . . . Actions | -11 -10 -10 -10 -9 -8 -7 -7 -7 --------- Run | Scr Mat Min Exi Min Mat Fac Gar Fac Total 4141 | 39 54 460 233 43 323 658 1255 1076 Wait 1386 | . . 35 . . 145 262 564 380 Move 2348 | 32 43 352 229 40 142 323 568 619 Hop 2 | . . . . . . 2 . . Pick Up 34 | 1 3 6 . . 6 7 8 3 Fast Attach 44 | 6 . 8 2 . 1 5 11 11 Attach 15 | . . . . . 4 6 3 2 Detach 3 | . . . . . . 2 . 1 Swap 40 | . 1 7 . 1 4 3 16 8 Drop 65 | . . 10 2 1 5 13 23 11 Fire 187 | . 6 42 . 1 16 35 47 40 Melee . | . . . . . . . . . Ram 1 | . . . . . . . . 1 Kick 1 | . 1 . . . . . . . Crush . | . . . . . . . . . Escape Stasis 15 | . . . . . . . 15 . Rewire . | . . . . . . . . . Trap . | . . . . . . . . . Miscellaneous . | . . . . . . . . . Route ------- -11/Scrapyard -10/Materials -10/Mines -10/Exiles (discovered 2 exits: [*Min x2]) -9/Mines -8/Materials -7/Factory -7/Garrison -7/Factory (discovered 2 exits: [*Fac] / Gar) History --------- Turn | Location | Event 9 | -11/Scrapyard | Discovered new exit (range 16) 55 | -11/Scrapyard | Entered Materials 75 | -10/Materials | Discovered new exit (range 16) 130 | -10/Materials | Entered Mines 263 | -10/Mines | Lost 4 parts (1n1u2w) 361 | -10/Mines | Core integrity fell below 50% 471 | -10/Mines | Joined a pair of Derelicts in attacking an 0b10 outpost 620 | -10/Mines | Found the Drone Emporium 627 | -10/Mines | Found Prototype Device 717 | -10/Mines | Deemed a non-threat by the Exiles lab entrance 718 | -10/Mines | Discovered new exit (range 5) 723 | -10/Mines | Entered Exiles 741 | -10/Exiles | Discovered new exit (range 15) 753 | -10/Exiles | Met 8R-AWN 774 | -10/Exiles | Met EX-HEX 780 | -10/Exiles | Build established: Mutant 805 | -10/Exiles | Met EX-BIN 821 | -10/Exiles | Aligned with FarCom system 822 | -10/Exiles | Given EX-Vault access code 853 | -10/Exiles | Opened EX-Vault 865 | -10/Exiles | Found Gui. Plasma Cannon 895 | -10/Exiles | Warned to stay clear of 0b10 Research branches 941 | -10/Exiles | Met EX-DEC 991 | -10/Exiles | Discovered new exit (range 10) 1002 | -10/Exiles | Left Exiles lab with Gui. Plasma Cannon 1002 | -10/Exiles | Entered Mines 1034 | -9/Mines | Discovered new exit (range 8) 1054 | -9/Mines | Entered Materials 1054 | -8/Materials | Evolved 4 slots: Power x1, Propulsion x1, Utility x2 1388 | -8/Materials | Discovered new exit (range 11) 1424 | -8/Materials | Entered Factory 1424 | -7/Factory | Evolved 2 slots: Utility x2 1424 | -7/Factory | Identified Bomb Drone Bay 1564 | -7/Factory | Fabricated L-41 Fighter (x3) 1729 | -7/Factory | Local fabrication network quarantined 2211 | -7/Factory | Identified exit to Garrison 2212 | -7/Factory | Entered Garrison 2220 | -7/Garrison | Installed Relay Interface Framework 2346 | -7/Garrison | Triggered checkpoint 2393 | -7/Garrison | Garrison Relay disabled 2554 | -7/Garrison | Triggered checkpoint 3166 | -7/Garrison | Lost 6 parts (1p1n2u2w) 3416 | -7/Garrison | Triggered checkpoint 3432 | -7/Garrison | Build established: Scavenger-Mutant 3456 | -7/Garrison | Garrison Relay disabled 3718 | -7/Garrison | Discovered new exit (range 19) 3756 | -7/Garrison | Entered Factory 4524 | -7/Factory | Discovered new exit (range 8) 4575 | -7/Factory | Identified exit to Garrison 4631 | -7/Factory | Lost 5 parts (2p2n1u) 4933 | -7/Factory | Build established: Mutant 5067 | -7/Factory | Fabricated R-06 Scavenger (x1) 5311 | -7/Factory | Self-destructed Last Messages --------------- 05287_ K-01 Serf destroyed. 05287_ Lgt. Ion Engine crushed. 05287_ K-01 Serf collects debris. 05287_ K-01 Serf destroyed. 05288_ U-05 Engineer builds a Wall. 05288_ U-05 Engineer lays Concrete. 05289_ W-25 Informer sends out distress signal. 05290_ U-05 Engineer builds a Wall. 05293_ Acquired Wheel. 05293_ ALERT: Hostiles spotted, dispatching reinforcements to Terminal F016. 05295_ U-05 Engineer builds a Wall. 05295_ Slammed into U-05 Engineer. 05295_ Destabilizing: System interference. 05295_ Transmission Jammer temporarily disabled. 05295_ Adv. Visual Processing Unit temporarily disabled. 05299_ ALERT: Construction progress impeded, dispatching reinforcements to local area. 05302_ Acquired 40 matter. 05304_ Acquired 1 matter. Map ----- +----------------------------------------------------+ | #????????????????# #??########???????????????????? | | ################## #??# #???????????????????? | | #??#! #???????????????????? | | ################## #??# ">" #?????????? ??????? | | #???????########## #??# "G" #????????? ???????? | | #???????# ! # #??# " #???????## ????????? | | ????????# ! # #??# % #??????? ?????????? | | ????????# # #??###g####?????? ??????????? | | ????????# # ##### #??????? ???????????? | | ????????# + g #??????? ????????????? | | ????????# #######gg #?????? ?????????????? | | ????????# ! #?????## ##?????? #??##?????????? | | ????????# !] #??????#g#?????? #? ??????????? | | ????????# !] #??????# ####### # ""??????????? | | ????????##########??????# g / ????????????? | | ??????????????########### #?????????????? | | ??????????????# # #?????????????? | | ??????????????# # % +?????????????? | | ??????????????# [[ # % % ####?????????????? | | #######???????# [[ # % #????????????????? | | #???????# = [[ + #??##########????? | | #???????# # #######??# #????? | | " """ #???????# # #????????# """ #????? | | " """ #???????# ! #k#????????# """ #????? | | " """ #????##############k##???????#""" """ #????? | | #????# #@####?????#"F" g #????? | | " """ #????#! + % #?????#" !""" #????? | | " """ #????# #### #?????#"""g""" #????? | | " """ #????# ##?# #####?#""" """ #????? | | #????# ####+####### #?? # | | #????# ####% ######/#+## | | #????# + + ###### | | #######????# #### % %+ | | ???????????# * ## # gg %%###### | | ???????????# ## # # #??###### | | ???????????# ## # # #?????????# ## | | ???????????# ## ####/### #???????????#? | | #??????????##"####+########### #########???????? | | #???????????##?# | | #??????????????# ######### ######## | | +??????????????# ### # ###?????????????? | | #????????####### # %= #?????????????? | | #????????+ # ##????????????? | | #????????# ####### """"??? | | ###+###### !]] # + """ ?? | | !]] # ] *] ##### | | ^ !] # ]]% ] #??????????" | | ] + [ #????????????? | | """ """ """ # #????????????? | | """??"" """ #????????????? | +----------------------------------------------------+ Best States ------------- Heat Dissipation 78 Energy Generation 29 Energy Capacity 575 Matter Stores 300 Matter Capacity 300 Sight Range 20 Terrain Scan Density 10 Jamming Range 8 Armor Coverage 375 Evasion (%) 40 Targeting Accuracy 10 Recoil Reduction 1 Kinecelleration 30 Offensive Hacking 10 Relay Coupler Types 20 Relay Coupler Value 1 Item Schematics ----------------- Adv. Hacking Suite | -7/Factory | Hacked Adv. Reclamation Unit | -7/Factory | Hacked Robot Schematics ------------------ R-06 Scavenger | -7/Factory | Hacked Fabricated ------------ L-41 Fighter | x3 | -7/Factory | Preloaded R-06 Scavenger | x1 | -7/Factory Alien Tech Used ----------------- None Achievements -------------- None Challenges ------------ None Game ------ Seed CooledCoreCloak Manual? 0 Play Time 00:38:30 Cumulative 58.5 hours Start 2021.03.12 @ 14:56:12 End 2021.03.12 @ 17:12:20 Sessions 3 Manual Loads 0 Difficulty Rogue Special Mode None Game No. 152 Rogue 3 Adventurer 147 Explorer 2 Win Type - Total 0 Types 0/0/0/0/0/0/0/0/0 Lore% 41 Gallery% 56 Achievement% 45 Wizard Run 0 Options --------- ASCII 0 Keyboard 0 Movement Arrows Keybinds 0 Fullscreen 1 Font 18/SmallcapsGlow Map View 76x50 Tactical HUD 1 Map Filters NONE Filters NONE Steam 1 RUN: c8444e00-f63d-4e63-8ae8-2b78778807c9